Cogmind - Beta 14 @@@ ROGUE MODE // 2024.10.03 @ 18:10:54 Player: Klelik Result: Destroyed by G-47 Trooper with Particle Gun Performance ------------- Evolutions (2) 1000 Regions Visited (3) 600 Robots Destroyed (49) 245 Value Destroyed (1215) 1215 Prototype IDs (3) 60 Alien Tech Used (0) 0 Bonus (33) 33 TOTAL SCORE: 3153 Bonus ------- High Alert Combat Kills 33 Cogmind --------- Core Integrity 0/550 Matter 280/300 Energy 36/160 System Corruption 6% Temperature Cool (9) Movement Rolling (95) Ox1 Location -8/Materials Parts ------- > --- POWER (1) -------- Light Nuclear Core > --- PROPULSION (3) --- Armored Treads Wheel > --- UTILITY (5) ------ Improved Heat Sink Disposable Heat Sink Medium Storage Unit Signal Interpreter > --- WEAPON (2) ------- Shock Rifle > --- INVENTORY (10) --- (None) Peak State ------------ > --- POWER ------------ Light Ion Engine > --- PROPULSION ------- Airjet Airjet Airjet > --- UTILITY ---------- Disposable Heat Sink Medium Storage Unit Sensor Array Signal Interpreter Improved Light Armor Plating > --- WEAPON ----------- Spread Laser Spread Laser > --- INVENTORY -------- Wheel Disposable Heat Sink Disposable Heat Sink Light Armor Plating Improved EM Shotgun Spread Laser Advanced Beam Cannon Heavy Particle Cannon Assault Rifle Mini Grenade Launcher [Rating: 24] Favorites ----------- Power Light Ion Engine Engine Light Ion Engine Power Core Light Nuclear Core Propulsion Aluminum Leg Treads Armored Treads Leg Aluminum Leg Wheel Wheel Hover Unit Airjet Utility Medium Storage Unit Device Disposable Heat Sink Storage Medium Storage Unit Processor Signal Interpreter Protection Light Armor Plating Weapon Spread Laser Energy Gun Spread Laser Energy Cannon Heavy Particle Cannon Ballistic Gun Assault Rifle Launcher Mini Grenade Launcher Build | -11 -10 -9 -8 ------- Run | Yrd Mat Mat Mat Slots Evolved 4 | . . 2 2 Power . | . . . . Propulsion 1 | . . 1 . Utility 3 | . . 1 2 Weapon . | . . . . Parts Attached 46 | 6 4 8 28 Power 5 | 1 . 1 3 Engine 3 | 1 . 1 1 Core 2 | . . . 2 Reactor . | . . . . Propulsion 12 | 2 . 3 7 Treads 1 | . . . 1 Leg 2 | 2 . . . Wheel 6 | . . 3 3 Hover 3 | . . . 3 Flight . | . . . . Utility 13 | 1 2 2 8 Device 6 | . 1 1 4 Storage 2 | 1 1 . . Processor 2 | . . 1 1 Hackware . | . . . . Protection 3 | . . . 3 Artifact . | . . . . Weapon 16 | 2 2 2 10 Energy Gun 7 | . 2 1 4 Energy Cannon 3 | . . . 3 Ballistic Gun 4 | 2 . 1 1 Ballistic Cannon . | . . . . Launcher 2 | . . . 2 Special Weapon . | . . . . Impact Weapon . | . . . . Slashing Weapon . | . . . . Piercing Weapon . | . . . . Special Melee Weapon . | . . . . Unidentified Prototypes . | . . . . Corrupted Parts 1 | . . . 1 System Corruption 6 | . . . 6 Parts Lost 20 | . . 3 17 Power 2 | . . 1 1 Propulsion 7 | . . 2 5 Utility 5 | . . . 5 Weapon 6 | . . . 6 Highest Loss Streak 11 | . . 2 11 To Critical Strikes . | . . . . Average Slot Usage (%) 86 | . 92 83 88 Engine 9 | . 14 10 7 Leg 13 | . 28 18 . Wheel 8 | . . 3 16 Hover 1 | . . . 4 Device 13 | . 7 12 18 Storage 10 | . 14 11 9 Processor 5 | . . 4 8 Protection 1 | . . . 5 Energy Gun 17 | . 14 22 13 Ballistic Gun 2 | . 13 . . Peak Build Rating 24 | 6 11 14 24 Average Rating 12 | 4 8 12 15 On Entrance 7 | . 6 11 13 Naked Turns . | . . . . Heaviest Build 27 | 11 20 21 27 Greatest Support 30 | 20 20 30 30 Greatest Overweight (x) 6 | . . 6 3 Average Overweight (x) . | . . . . Largest Inventory Capacity 10 | 8 10 10 10 Average Capacity 9 | 7 9 10 10 Most Carried 10 | 4 10 10 10 Average Carried 8 | 1 7 9 7 Final Capacity 10 | 8 10 10 10 Final Carried 10 | 4 10 9 . Class Distribution -------------------- 71% | Mutant 28% | Scavenger-Mutant Dominant Class ---------------- Mutant | -10/Materials Mutant | -9/Materials Scavenger-Mutant | -8/Materials Resources | -11 -10 -9 -8 ----------- Run | Yrd Mat Mat Mat Matter Collected 700 | 260 52 86 302 Remotely . | . . . . Salvage Created 1313 | . 71 439 803 Parts 96 | . 10 33 53 Haulers Intercepted 1 | . . 1 . Recyclers Shooed 2 | . . . 2 Parts Field Recycled . | . . . . Retrieved Matter . | . . . . Parts Self-Destructed . | . . . . Prevented . | . . . . Kills | -11 -10 -9 -8 ------- Run | Yrd Mat Mat Mat Combat Hostiles Destroyed 34 | . 3 8 23 Guns 21 | . 3 7 11 Cannons 5 | . . . 5 AOE 7 | . . 1 6 Classes Destroyed 12 | . 2 6 4 Worker 4 | . . 1 3 Builder 2 | . . 1 1 Hauler 1 | . . 1 . Recycler 3 | . . 2 1 Mechanic 1 | . . . 1 Watcher 4 | . 1 2 1 Swarmer 9 | . 3 3 3 Cutter 6 | . . . 6 Grunt 12 | . . 1 11 Brawler 1 | . . . 1 Sentry 5 | . . 4 1 Heavy 1 | . . . 1 Best Kill Streak 14 | . 3 5 14 Combat Bots Only 9 | . 3 4 9 Max Kills in Single Turn 4 | . 1 2 4 Gunslinging . | . . . . Exploded 1 | . . 1 1 Melee . | . . . . Uniques/NPCs Destroyed . | . . . . Combat | -11 -10 -9 -8 -------- Run | Yrd Mat Mat Mat Hostile Shots Fired 219 | . 10 45 164 Missed 60 | . 3 8 49 Damage Taken 2532 | . 56 443 2033 Core 648 | . 24 74 550 Absorbed by Shields . | . . . . Core Remaining (%) 90 | 100 90 81 . Volleys Fired 95 | . 7 27 61 Largest 2 | . 2 2 2 Hottest 143 | . 130 130 143 Shots Fired 172 | . 14 52 106 Gun 141 | . 14 52 75 Cannon 23 | . . . 23 Launcher 8 | . . . 8 Special . | . . . . Kinetic 22 | . 6 2 14 Thermal 137 | . 8 50 79 Explosive 8 | . . . 8 Electromagnetic 5 | . . . 5 Robot Hit Streak 14 | . 3 14 13 Robot Miss Streak 7 | . 4 7 7 Penetration Max . | . . . . Secondary Targets 3 | . 2 . 1 Max Gunslinging Chain 1 | . 1 . 1 Shots Hit Robots 133 | . 10 36 87 Core Hits 183 | . 13 58 112 Critical Kills . | . . . . Critical Parts Destroyed . | . . . . Critical Strikes . | . . . . Melee Attacks . | . . . . Impact . | . . . . Slashing . | . . . . Piercing . | . . . . Sneak Attacks . | . . . . Combat Hostiles . | . . . . Follow-up Attacks . | . . . . Damage Inflicted 2951 | . 102 629 2220 Guns 1532 | . 102 515 915 Cannons 326 | . . . 326 Explosions 1093 | . . 114 979 Melee . | . . . . Ramming . | . . . . Kinetic 165 | . 26 . 139 Thermal 1618 | . 76 515 1027 Explosive 979 | . . . 979 Electromagnetic 189 | . . 114 75 Impact . | . . . . Slashing . | . . . . Piercing . | . . . . Highest Corruption 6 | . . . 6 Average Corruption 6 | . . . 6 Corruption Purged . | . . . . Corruption Blocked . | . . . . Overload Shots . | . . . . Overflow Damage 33 | . . 4 29 Projectiles 10 | . . . 10 Explosions 23 | . . 4 19 Melee . | . . . . Knockbacks . | . . . . Impact . | . . . . Kinetic . | . . . . Secondary . | . . . . Self-Inflicted Damage 191 | . . 27 164 Shots 5 | . . 1 4 Rammed . | . . . . Targets Rammed . | . . . . Kicked . | . . . . Crushed . | . . . . Highest Temperature 198 | . 169 198 195 Average Temperature 89 | . 89 85 92 Received Heat Transfer 951 | . . 96 855 Siege Activations . | . . . . Robots Corrupted 1 | . . . 1 Combat Hostiles 1 | . . . 1 Parts Fried . | . . . . Impact Corruptions . | . . . . Robots Melted . | . . . . Combat Hostiles . | . . . . Parts Melted 3 | . . . 3 Heat Transferred 2148 | . 95 645 1408 Parts Sabotaged . | . . . . Parts Stolen . | . . . . Parts Stripped . | . . . . Power Chain Reactions . | . . . . Alert | -11 -10 -9 -8 ------- Run | Yrd Mat Mat Mat Peak Influence 484 | . 128 282 484 Initial 72 | . . 53 72 Average 138 | . 44 121 208 Maximum Alert Level 2 | . . 1 2 Low Security (%) 69 | 100 100 75 46 Level 1 27 | . . 24 43 Level 2 3 | . . . 9 Level 3 . | . . . . Level 4 . | . . . . Level 5 . | . . . . High Security . | . . . . Max Security . | . . . . Squads Dispatched 9 | . . 1 8 Investigation 1 | . . . 1 Extermination . | . . . . Reinforcement 8 | . . 1 7 Assault . | . . . . Garrison . | . . . . Intercept . | . . . . Searches Triggered . | . . . . Construction Impeded 1 | . . . 1 Haulers Reinforced . | . . . . Active Scanning Responses . | . . . . Cargo Convoy Interrupts . | . . . . Stealth | -11 -10 -9 -8 --------- Run | Yrd Mat Mat Mat Distress Signals 1 | . . 1 . Communications Jammed . | . . . . Distress Signals . | . . . . Times Spotted 59 | . 6 16 37 Peak Tracking Total 7 | . 4 5 7 Tactical Retreats 3 | . . . 3 Traps | -11 -10 -9 -8 ------- Run | Yrd Mat Mat Mat Traps Triggered . | . . . . Indirectly . | . . . . Trap Hack Attempts . | . . . . Triggered . | . . . . Disarmed 6 | . 6 . . Reprogrammed . | . . . . Reused . | . . . . Traps Extracted . | . . . . Installed . | . . . . Triggered . | . . . . Machines | -11 -10 -9 -8 ---------- Run | Yrd Mat Mat Mat Machines Disabled 3 | . . 2 1 Max in Single Turn 2 | . . 2 1 Machines Repaired . | . . . . Machines Dismantled . | . . . . Machines Sabotaged . | . . . . Overloaded Fab Kills . | . . . . Hacking | -11 -10 -9 -8 --------- Run | Yrd Mat Mat Mat Machines Accessed 8 | . 2 3 3 Terminals 5 | . 2 1 2 Fabricators . | . . . . Repair Stations . | . . . . Recycling Units 1 | . . 1 . Scanalyzers 2 | . . 1 1 Garrison Access . | . . . . Total Hacks 25 | . 8 9 8 Successful 14 | . 3 5 6 Failed 11 | . 5 4 2 Catastrophic 2 | . 2 . . Database Lockouts . | . . . . Manual 12 | . 7 . 5 Terminals 16 | . 8 2 6 Fabricators . | . . . . Repair Stations . | . . . . Recycling Units 5 | . . 5 . Scanalyzers 4 | . . 2 2 Garrison Access . | . . . . Terminal Hacks 7 | . 3 . 4 Emergency Access Points 1 | . . . 1 Terminal Index 2 | . 1 . 1 Disarm Traps 1 | . 1 . . Maintenance Status 2 | . 1 . 1 Transport Status 1 | . . . 1 Fabricator Hacks . | . . . . Repair Station Hacks . | . . . . Recycling Unit Hacks 4 | . . 4 . Recycle Component 1 | . . 1 . Process 1 | . . 1 . Report Inventory 2 | . . 2 . Scanalyzer 3 | . . 1 2 Insert Component 3 | . . 1 2 Garrison Access Hacks . | . . . . Unauthorized Hacks . | . . . . Terminals . | . . . . Fabricators . | . . . . Repair Stations . | . . . . Recycling Units . | . . . . Scanalyzers . | . . . . Garrison Access . | . . . . Data Cores Recovered . | . . . . Used . | . . . . Hacking Detections 8 | . 2 3 3 Full Trace Events 1 | . . . 1 Feedback Events . | . . . . Feedback Blocked . | . . . . Robot Schematics Acquired . | . . . . Robots Built . | . . . . Authchips . | . . . . Time . | . . . . Total Robot Build Rating . | . . . . Part Schematics Acquired . | . . . . Parts Built . | . . . . Authchips . | . . . . Time . | . . . . Total Part Build Rating . | . . . . Parts Repaired . | . . . . Time . | . . . . Parts Recycled 1 | . . 1 . Recycled Matter 219 | . . 219 . Retrieved Matter . | . . . . Retrieved Components . | . . . . Parts Scanalyzed . | . . . . Part Schematics Acquired . | . . . . Parts Damaged . | . . . . Bothacking | -11 -10 -9 -8 ------------ Run | Yrd Mat Mat Mat Used RIF Installer . | . . . . Robots Hacked . | . . . . Non-combat . | . . . . Combat . | . . . . Robot Hacks Applied . | . . . . Relay Couplers Released . | . . . . Fabnet Peak Effective % . | . . . . Robots Rewired . | . . . . Allies Hacked . | . . . . Hacks Repelled . | . . . . Allies | -11 -10 -9 -8 -------- Run | Yrd Mat Mat Mat Total Allies . | . . . . Largest Group . | . . . . Highest-Rated Group . | . . . . Highest-Rated Ally . | . . . . Total Orders . | . . . . Ally Attacks . | . . . . Total Damage . | . . . . Kills . | . . . . Allies Corrupted . | . . . . Allies Melted . | . . . . Intel | -11 -10 -9 -8 ------- Run | Yrd Mat Mat Mat Robot Analysis Total . | . . . . Derelict Logs Recovered . | . . . . Drone Launches . | . . . . Drone Recoveries . | . . . . Exploration | -11 -10 -9 -8 ------------- Run | Yrd Mat Mat Mat Turns Passed 1981 | 64 269 937 711 Spaces Moved 965 | 46 186 417 316 Core 9 | 5 . 1 3 Treads 8 | . . . 8 Legs 541 | 41 186 314 . Wheels 377 | . . 102 275 Hover 30 | . . . 30 Flight . | . . . . Fastest Speed 50 | 50 120 80 52 Average Speed 105 | 112 120 112 84 Slowest Speed 350 | 120 120 350 200 Overloaded Moves . | . . . . Propulsion Burnouts . | . . . . Robots Hopped . | . . . . Cave-ins Triggered . | . . . . Exploration Rate (%) 22 | 4 34 34 17 Regions Visited 3 Branch Regions . Pre-discovered Areas . | . . . . Known Exits Taken . | . . . . Unknown Exits Taken 3 | 1 1 1 . Scrap Searched . | . . . . Spaces Dug 1 | . . . 1 Terrain Destroyed 41 | . . . 41 Melee . | . . . . Projectile 5 | . . . 5 AOE 36 | . . . 36 Terrain Rammed . | . . . . Walls Destroyed . | . . . . Machines Disabled . | . . . . Actions | -11 -10 -9 -8 --------- Run | Yrd Mat Mat Mat Total 1753 | 55 220 830 648 Wait 614 | . 10 369 235 Move 962 | 45 185 416 316 Hop . | . . . . Pick Up 20 | 4 8 6 2 Fast Attach 21 | 6 3 3 9 Attach 16 | . 1 3 12 Detach 4 | . 2 1 1 Swap 9 | . . 2 7 Drop 12 | . 4 3 5 Fire 95 | . 7 27 61 Melee . | . . . . Ram . | . . . . Kick . | . . . . Crush . | . . . . Escape Stasis . | . . . . Rewire . | . . . . Trap . | . . . . Miscellaneous . | . . . . Route ------- -11/Scrapyard -10/Materials -9/Materials -8/Materials History --------- Turn | Location | Event 4 | -11/Scrapyard | Discovered new exit (range 15) 65 | -11/Scrapyard | Entered Materials 292 | -10/Materials | Discovered new exit (range 15) 312 | -10/Materials | Build established: Mutant 334 | -10/Materials | Entered another Materials area 334 | -9/Materials | Evolved 2 slots: Propulsion x1, Utility x1 955 | -9/Materials | Discovered new exit (range 5) 1271 | -9/Materials | Entered another Materials area 1271 | -8/Materials | Evolved 2 slots: Utility x2 1599 | -8/Materials | Build established: Scavenger-Mutant 1826 | -8/Materials | Lost 5 parts (3n2u) 1862 | -8/Materials | Core integrity fell below 50% 1896 | -8/Materials | Core integrity fell below 20% 1916 | -8/Materials | Destroyed 9 combat bots 1950 | -8/Materials | Lost 11 parts (1p2n3u5w) 1982 | -8/Materials | Destroyed by G-47 Trooper with Particle Gun Last Messages --------------- 01911_ Imp. EM Shotgun destroyed. 01913_ U-05 Engineer lays Concrete. 01914_ K-01 Serf collects debris. 01919_ Disposable Heat Sink destroyed. 01919_ U-05 Engineer builds a Wall. 01921_ Acquired 27 matter. 01923_ Acquired 23 matter. 01946_ Acquired Shock Rifle. 01950_ Connecting with Terminal... 01950_ ALERT: Suspicious activity at Terminal M005. Dispatching Investigation squad. 01972_ Electrolysis Chamber disabled. 01975_ G-47 Trooper misfires. 01977_ G-47 Trooper system terminally corrupted. 01980_ Acquired Corrupted Lgt. Nuclear Core. 01980_ Integrated Corrupted Lgt. Nuclear Core (+6). 01980_ Complication: System interference. 01980_ Imp. Heat Sink temporarily disabled. [Achievement: Just Browsing] Map ----- +----------------------------------------------------+ | ??????????????????????# # * = #?????????? | | ??????????????????????# / ! = #?????????? | | ??????????????????????# # ! =#?????????? | | ??????????????????????# # % #?????????? | | ??????????????????????# ##############?????????? | | ??????????????????????# % # !!! #??????????????? | | ??????????????????????# %%+% !! #??????????????? | | ??????????????????????# %#% !!! #??????????????? | | ????????????########### ############???????????? | | ????????????# ## ## #???????????? | | ????????????# # # #???????????? | | ????????????# # # """ """ #???????????? | | ????????????# + T %+ """ """ #???????????? | | ????????????# # #=""" """ #???????????? | | ????????????# # # #???????????? | | ????????????# ####### #???????????? | | ????????????# #?????# #???????????? | | ????????????# #?????###+#######???????????? | | ????????????##+############### #?????????????????? | | ?????????????# ## g/ #?????????????????? | | ?????????????# ## g######?????????????????? | | ?????????????# ## #??????????????????????? | | ????????##???# ## [#??????????????????????? | | ????????# ??# + ""g%#??????????????????????? | | ????????# ??# ## "T" " " #??????????????????????? | | ????????# ?# ## """ """@#??????????????????????? | | ????????# ?# ## #??????????????????????? | | ????????# # ######+#####??????????????????????? | | ????????# # #### #????????????????????????? | | ????????# + #????????????????????????? | | ????????# [ # #????????????????????????? | | ????????# # #????????????????????????? | | ????????####?#+#+## #????????????????????????? | | ???????????? ## ##????????????????????????? | | ???????????# ## #?????????????????????????? | | ???????????#"" ## #?????????????????????????? | | ???????????#"T ## #?????????????????????????? | | ???????????#"" ## #?????????????????????????? | | ???????????# ## #?????????????????????????? | | ???????????######### ###########???????????????? | | ???????????????????# # "" #???????????????? | | ???????????????????# # ""S #???????????????? | | ???????????????????# # "" #???????????????? | | ???????????????????# # """ #???????????????? | | ???????????????????# + """ #???????????????? | | ???????????????????# # """ #???????????????? | | ???????????????????# # #???????????????? | | ???????????????????# # #???????????????? | | ???????????????????###############???????????????? | | ?????????????????????????????????????????????????? | +----------------------------------------------------+ Best States ------------- Heat Dissipation 45 Coolant Potential 100 Energy Generation 14 Energy Capacity 160 Matter Stores 300 Matter Capacity 300 Sight Range 18 Robot Scan Range 14 Terrain Scan Density 10 Armor Coverage 150 Evasion (%) 62 Recoil Reduction 1 Item Schematics ----------------- None Robot Schematics ------------------ None Fabricated ------------ Nothing Alien Tech Used ----------------- None Achievements -------------- Just Browsing Challenges ------------ None Game ------ Seed ReinforcedEnergySpecial Manual? 0 Play Time 00:39:04 Cumulative 21.8 hours Start 2024.10.03 @ 17:28:01 End 2024.10.03 @ 18:10:54 Sessions 1 Manual Loads 0 Difficulty Rogue Special Mode None Game No. 15 Rogue 10 Adventurer 5 Explorer 0 Win Type - Total 0 Types 0/0/0/0/0/0/0/0/0 Lore% 5 Gallery% 25 Achievement% 22 Wizard Run 0 Options --------- Layout 2 ASCII 0 Keyboard 1 Movement Numpad Keybinds 0 Fullscreen 1 Font 24/Smallcaps Map View 50x44 Zoom Use 0% Tactical HUD 1 Map Filters NONE Filters NONE Steam 1 RUN: ad717d60-c1aa-486a-b22a-f3ba5235c00a